Cogmind - Beta 16 @@@ ROGUE MODE // 2026.01.31 @ 15:08:31 Player: winnking222 Result: Destroyed by LH-RSH(R) with Subdweller Laser Performance ------------- Evolutions (0) 0 Regions Visited (2) 400 Robots Destroyed (32) 160 Value Destroyed (771) 771 Prototype IDs (12) 240 Alien Tech Used (0) 0 Bonus (0) 0 TOTAL SCORE: 1571 Bonus ------- None Cogmind --------- Core Integrity 0/250 Matter 284/300 Energy 265/265 System Corruption 0% Temperature Cool (99) Movement Treading (160) Location -10/Subcaves Parts ------- > --- POWER (1) -------- Reinforced Ion Engine > --- PROPULSION (2) --- Light Treads Light Treads > --- UTILITY (2) ------ (None) > --- WEAPON (2) ------- Subdweller Beam Cannon > --- INVENTORY (5) ---- Compact Wheel Powered Cannon Peak State ------------ > --- POWER ------------ Reinforced Ion Engine > --- PROPULSION ------- Light Treads Light Treads > --- UTILITY ---------- Huge Storage Unit Subdweller Optics > --- WEAPON ----------- Subdweller Beam Cannon Light Cannon > --- INVENTORY -------- Reinforced Ion Engine Subdweller Power Source Subdweller Power Source Compact Wheel Compact Wheel Subdweller Monowheel Subdweller Monowheel Flight Unit Flight Unit Medium Storage Unit High-capacity Matter Pod Gun Armor Scrap Shield Subdweller Laser Subdweller Beam Cannon Powered Cannon Battle Rifle Battle Rifle Subdweller Machine Gun Light Cannon Light Cannon [Rating: 15] Favorites ----------- Power Reinforced Ion Engine Engine Reinforced Ion Engine Propulsion Light Treads Treads Light Treads Leg Aluminum Leg Wheel Compact Wheel Utility Huge Storage Unit Device Seismic Detector Storage Huge Storage Unit Protection Light Armor Plating Weapon Light Cannon Energy Gun Small Laser Energy Cannon Subdweller Beam Cannon Ballistic Gun Assault Rifle Ballistic Cannon Light Cannon Build | -11 -10 -10 ------- Run | Yrd Mat Sub Slots Evolved . | . . . Power . | . . . Propulsion . | . . . Utility . | . . . Weapon . | . . . Parts Attached 30 | 7 12 11 Power 5 | 1 3 1 Engine 5 | 1 3 1 Core . | . . . Reactor . | . . . Propulsion 8 | 2 3 3 Treads 5 | 2 2 1 Leg 1 | . . 1 Wheel 2 | . 1 1 Hover . | . . . Flight . | . . . Utility 9 | 2 3 4 Device 3 | 1 . 2 Storage 3 | 1 2 . Processor . | . . . Hackware . | . . . Protection 3 | . 1 2 Artifact . | . . . Weapon 8 | 2 3 3 Energy Gun 4 | 2 2 . Energy Cannon 1 | . . 1 Ballistic Gun 1 | . 1 . Ballistic Cannon 2 | . . 2 Launcher . | . . . Special Weapon . | . . . Impact Weapon . | . . . Slashing Weapon . | . . . Piercing Weapon . | . . . Special Melee Weapon . | . . . Unidentified Prototypes . | . . . Parts Lost 10 | . 6 4 Power 1 | . 1 . Propulsion 2 | . 2 . Utility 4 | . 1 3 Weapon 3 | . 2 1 Highest Loss Streak 3 | . 3 2 To Critical Strikes . | . . . Average Backups 17 | 5 15 21 Power 2 | . 1 2 Propulsion 7 | 3 7 8 Utility 3 | . 3 4 Weapon 4 | . 3 5 Tool/Special . | . . . Unused Backups 27 | . 1 26 Power 6 | . 1 5 Propulsion 9 | . . 9 Utility 4 | . . 4 Weapon 8 | . . 8 Tool/Special . | . . . Average Slot Usage (%) 96 | . 94 97 Engine 13 | . 13 14 Treads 20 | . 26 12 Leg 1 | . . 3 Wheel 6 | . . 12 Device 3 | . 5 1 Storage 13 | . 14 13 Protection 7 | . 4 11 Energy Gun 9 | . 16 . Energy Cannon 4 | . . 9 Ballistic Gun 6 | . 11 . Ballistic Cannon 7 | . . 17 Peak Build Rating 15 | 7 10 15 Average Rating 9 | 6 8 12 On Entrance 5 | . 7 10 Avg Prop Armor Cover (%) 7 | . 10 7 Naked Turns . | . . . Heaviest Build 104 | 13 96 104 Greatest Support 40 | 40 40 40 Greatest Overweight (x) 6 | . 5 6 Average Overweight (x) 2 | . 1 4 Largest Inventory Capacity 25 | 8 25 25 Average Capacity 21 | 7 21 23 Most Carried 25 | 7 24 25 Average Carried 18 | 5 15 22 Final Capacity 25 | 8 25 5 Final Carried 24 | 6 24 3 Class Distribution -------------------- 100% | Mutant Dominant Class ---------------- Mutant | -10/Materials Mutant | -10/Subcaves Resources | -11 -10 -10 ----------- Run | Yrd Mat Sub Matter Collected 1107 | 270 458 379 Remotely . | . . . Salvage Created 1097 | 150 643 304 Parts 76 | 13 42 21 Haulers Intercepted 2 | . 2 . Recyclers Shooed 1 | . 1 . Parts Field Recycled . | . . . Retrieved Matter . | . . . Parts Self-Destructed 16 | . . 16 Prevented . | . . . Parts Restored . | . . . Kills | -11 -10 -10 ------- Run | Yrd Mat Sub Combat Hostiles Destroyed 22 | . 14 8 Guns 14 | . 14 . Cannons 8 | . . 8 Classes Destroyed 10 | 2 6 2 Builder 1 | . 1 . Tunneler 4 | 4 . . Hauler 2 | . 2 . Recycler 1 | 1 . . Operator 1 | . 1 . Watcher 1 | . 1 . Swarmer 6 | . 6 . Grunt 8 | . 8 . Sentry 1 | . . 1 Subdweller 7 | . . 7 Best Kill Streak 5 | 2 5 2 Combat Bots Only 5 | . 5 2 Max Kills in Single Turn 1 | 1 1 1 Gunslinging . | . . . Exploded . | . . . Melee . | . . . Uniques/NPCs Destroyed . | . . . Combat | -11 -10 -10 -------- Run | Yrd Mat Sub Hostile Shots Fired 178 | . 119 59 Missed 47 | . 37 10 Hits 131 | . 82 49 Projectile 131 | . 82 49 Critical Strikes 1 | . . 1 Damage Taken 2048 | . 855 1193 Core 261 | . 103 158 Absorbed by Shields . | . . . Core Remaining (%) 100 | 100 . . Volleys Fired 155 | 14 73 68 Largest 2 | 2 2 2 Hottest 110 | 80 80 110 Shots Fired 284 | 28 144 112 Gun 172 | 28 144 . Cannon 112 | . . 112 Launcher . | . . . Special . | . . . Kinetic 113 | . 50 63 Thermal 102 | . 53 49 Explosive . | . . . Electromagnetic 69 | 28 41 . Robot Hit Streak 18 | 4 14 18 Robot Miss Streak 7 | 7 7 1 Penetration Max . | . . . Secondary Targets 2 | . 2 . Max Gunslinging Chain 1 | . 1 . Shots Hit Robots 140 | 12 80 48 Core Hits 48 | 5 31 12 Critical Kills . | . . . Critical Parts Destroyed . | . . . Critical Strikes 2 | 1 . 1 Blast 1 | . . 1 Corrupt 1 | 1 . . Melee Attacks . | . . . Impact . | . . . Slashing . | . . . Piercing . | . . . Sneak Attacks . | . . . Combat Hostiles . | . . . Follow-up Attacks . | . . . Damage Inflicted 2340 | 204 1055 1081 Guns 1212 | 170 1042 . Cannons 1071 | . . 1071 Explosions 34 | 34 . . Melee . | . . . Ramming 23 | . 13 10 Kinetic 803 | . 367 436 Thermal 1055 | 34 386 635 Explosive . | . . . Electromagnetic 459 | 170 289 . Impact . | . . . Slashing . | . . . Piercing . | . . . Highest Corruption . | . . . Average Corruption . | . . . Corruption Purged . | . . . Corruption Blocked . | . . . Overload Shots . | . . . Overflow Damage 2 | 2 . . Projectiles . | . . . Explosions 2 | 2 . . Melee . | . . . Knockbacks 9 | . . 9 Impact . | . . . Kinetic 8 | . . 8 Secondary 1 | . . 1 Self-Inflicted Damage 5 | . . 5 Shots . | . . . Rammed 3 | . 2 1 Targets Rammed 3 | . 2 1 Kicked . | . . . Crushed . | . . . Highest Temperature 210 | 72 210 93 Average Temperature 55 | 27 84 19 Received Heat Transfer 561 | . 270 291 Siege Activations . | . . . Martial Activations . | . . . Shielding Activations . | . . . Robots Disrupted . | . . . Combat Hostiles . | . . . Robots Corrupted . | . . . Combat Hostiles . | . . . Parts Fried 1 | . 1 . Impact Corruptions . | . . . Robots Melted . | . . . Combat Hostiles . | . . . Parts Melted 3 | . 1 2 Heat Transferred 1801 | 50 900 851 Parts Sabotaged . | . . . Parts Stolen . | . . . Parts Stripped . | . . . Power Chain Reactions 1 | 1 . . Alert | -11 -10 -10 ------- Run | Yrd Mat Sub Maximum Alert Level . | . . . Low Security (%) 100 | 100 100 . Level 1 . | . . . Level 2 . | . . . Level 3 . | . . . Level 4 . | . . . Level 5 . | . . . High Security . | . . . Max Security . | . . . Peak Influence 94 | 10 94 . Initial . | . . . Average 15 | 1 17 . Influence Increases 436 | 25 391 20 Destroy 0b10 Robot/C 300 | . 280 20 Destroy 0b10 Robot/NC 50 | 25 25 . Destroy Leader 66 | . 66 . Successful Hack 20 | . 20 . Influence Decreases 436 | 25 378 33 Entered New Map 7 | . . 7 Time Decay 389 | 25 338 26 Lost Part 40 | . 40 . Squads Dispatched 2 | . 2 . Investigation . | . . . Extermination . | . . . Reinforcement 2 | . 2 . Assault . | . . . Garrison . | . . . Intercept . | . . . Searches Triggered . | . . . Construction Impeded . | . . . Haulers Reinforced . | . . . Active Scanning Responses . | . . . Cargo Convoy Interrupts . | . . . Stealth | -11 -10 -10 --------- Run | Yrd Mat Sub Distress Signals 1 | . 1 . Communications Jammed . | . . . Distress Signals . | . . . Times Spotted 40 | . 29 11 Peak Tracking Total 3 | . 3 3 Tactical Retreats . | . . . Traps | -11 -10 -10 ------- Run | Yrd Mat Sub Traps Triggered 2 | . 1 1 Indirectly . | . . . Trap Hack Attempts . | . . . Triggered . | . . . Disarmed . | . . . Reprogrammed . | . . . Reused . | . . . Traps Extracted . | . . . Installed . | . . . Triggered . | . . . Machines | -11 -10 -10 ---------- Run | Yrd Mat Sub Machines Disabled 1 | . . 1 Max in Single Turn 1 | . . 1 Machines Repaired . | . . . Machines Dismantled . | . . . Machines Sabotaged . | . . . Overloaded Fab Kills . | . . . Hacking | -11 -10 -10 --------- Run | Yrd Mat Sub Machines Accessed 6 | . 5 1 Terminals 5 | . 5 . Fabricators . | . . . Repair Stations . | . . . Recycling Units . | . . . Scanalyzers . | . . . Garrison Access . | . . . Total Hacks 23 | . 14 9 Successful 17 | . 8 9 Failed 6 | . 6 . Catastrophic . | . . . Database Lockouts . | . . . Manual 14 | . 14 . Terminals 14 | . 14 . Fabricators . | . . . Repair Stations . | . . . Recycling Units . | . . . Scanalyzers . | . . . Garrison Access . | . . . Terminal Hacks 9 | . . 9 Record 8 | . . 8 Proto ID Catalog 1 | . . 1 Fabricator Hacks . | . . . Repair Station Hacks . | . . . Recycling Unit Hacks . | . . . Scanalyzer . | . . . Garrison Access Hacks . | . . . Unauthorized Hacks 8 | . 8 . Terminals 8 | . 8 . Botnet 4 | . 4 . Skim 4 | . 4 . Fabricators . | . . . Repair Stations . | . . . Recycling Units . | . . . Scanalyzers . | . . . Garrison Access . | . . . Data Cores Recovered 1 | . 1 . Used 1 | . 1 . Hacking Detections 4 | . 4 . Full Trace Events . | . . . Feedback Events . | . . . Feedback Blocked . | . . . Robot Schematics Acquired . | . . . Robots Built . | . . . Authchips . | . . . Time . | . . . Total Robot Build Rating . | . . . Part Schematics Acquired . | . . . Parts Built . | . . . Authchips . | . . . Time . | . . . Total Part Build Rating . | . . . Part Studies Acquired . | . . . Parts Repaired . | . . . Time . | . . . Parts Recycled . | . . . Recycled Matter . | . . . Retrieved Matter . | . . . Retrieved Components . | . . . Parts Scanalyzed . | . . . Part Schematics Acquired . | . . . Parts Damaged . | . . . Bothacking | -11 -10 -10 ------------ Run | Yrd Mat Sub Used RIF Installer . | . . . Robots Hacked . | . . . Non-combat . | . . . Combat . | . . . Robot Hacks Applied . | . . . Relay Couplers Released . | . . . Fabnet Peak Effective % . | . . . Robots Rewired . | . . . Allies Hacked . | . . . Hacks Repelled . | . . . Allies | -11 -10 -10 -------- Run | Yrd Mat Sub Total Allies . | . . . Largest Group . | . . . Highest-Rated Group . | . . . Highest-Rated Ally . | . . . Total Orders . | . . . Ally Attacks . | . . . Total Damage . | . . . Kills . | . . . Allies Corrupted . | . . . Allies Melted . | . . . Intel | -11 -10 -10 ------- Run | Yrd Mat Sub Active Infowar (turns) 962 | 116 679 167 Optics 69 | . . 69 Structural 98 | . . 98 Seismic 795 | 116 679 . Robot Analysis Total . | . . . Derelict Logs Recovered 1 | . . 1 Drone Launches . | . . . Drone Recoveries . | . . . Exploration | -11 -10 -10 ------------- Run | Yrd Mat Sub Turns Passed 3435 | 195 1781 1459 Spaces Moved 1272 | 91 585 596 Core 14 | 14 . . Treads 718 | 77 536 105 Legs . | . . . Wheels 540 | . 49 491 Hover . | . . . Flight . | . . . Fastest Speed 50 | 50 160 145 Average Speed 218 | 143 253 195 Slowest Speed 480 | 160 480 320 Overloaded Moves . | . . . Propulsion Burnouts . | . . . Robots Hopped . | . . . Potential Cave-ins . | . . . Cave-ins Triggered . | . . . Exploration Rate (%) 41 | 5 92 26 Regions Visited 2 Branch Regions 1 Pre-discovered Areas . | . . . Known Exits Taken . | . . . Unknown Exits Taken 2 | 1 1 . Scrap Searched 3 | . . 3 Spaces Dug . | . . . Terrain Destroyed 7 | 2 . 5 Melee . | . . . Projectile 5 | . . 5 AOE 2 | 2 . . Terrain Rammed . | . . . Walls Destroyed . | . . . Machines Disabled . | . . . Actions | -11 -10 -10 --------- Run | Yrd Mat Sub Total 1644 | 127 734 783 Wait 79 | 4 28 47 Move 1270 | 90 584 596 Hop . | . . . Pick Up 75 | 12 28 35 Fast Attach 2 | 1 . 1 Attach 17 | 6 7 4 Detach 1 | . . 1 Swap 17 | . 7 10 Drop 23 | . 5 18 Fire 155 | 14 73 68 Melee . | . . . Ram 1 | . . 1 Kick . | . . . Crush 2 | . 2 . Escape Stasis . | . . . Rewire . | . . . Trap . | . . . Miscellaneous 2 | . . 2 Route ------- -11/Scrapyard -10/Materials (discovered 5 exits: [*Mat x3] / [*Min] / *Sub) -10/Subcaves History --------- Turn | Location | Event 13 | -11/Scrapyard | Discovered new exit (range 15) 196 | -11/Scrapyard | Entered Materials 311 | -10/Materials | Build established: Mutant 322 | -10/Materials | Discovered new exit (range 8) 836 | -10/Materials | Discovered new exit (range 14) 910 | -10/Materials | Lost 3 parts (1p1n1u) 1046 | -10/Materials | Discovered new exit (range 16) 1628 | -10/Materials | Discovered new exit (range 16) 1967 | -10/Materials | Discovered new exit (range 7) 1977 | -10/Materials | Entered Subcaves 2183 | -10/Subcaves | Visited 4L-MR0's lab 2203 | -10/Subcaves | Found Powered Cannon 2306 | -10/Subcaves | Shifting Twisted Machinery released Sub. Monowheel 2308 | -10/Subcaves | Shifting Twisted Machinery released Sub. Beam Cannon 2624 | -10/Subcaves | A swath of the cavern ceiling suddenly collapsed 2631 | -10/Subcaves | Learned 8 Materials zone layouts 2709 | -10/Subcaves | Core integrity fell below 50% 3061 | -10/Subcaves | A Subdweller sparked back to life 3061 | -10/Subcaves | A Subdweller sparked back to life 3061 | -10/Subcaves | A Subdweller sparked back to life 3099 | -10/Subcaves | Core integrity fell below 20% 3195 | -10/Subcaves | Found Gun Armor 3436 | -10/Subcaves | Destroyed by LH-RSH(R) with Subdweller Laser Last Messages --------------- 03244_ Acquired Sub. Optics. 03250_ Subatomizers dissect the Sub. Monowheel. 03250_ Acquired Com. Wheel. 03254_ Acquired 10 matter. 03260_ Subatomizers dissect the Sub. Monowheel. 03299_ Acquired Sub. Monowheel. 03306_ Dropped Com. Wheel. 03309_ Subatomizers dissect the Sub. Monowheel. 03310_ Acquired Structural Scanner. 03315_ Acquired 10 matter. 03321_ Subatomizers dissect the Sub. Monowheel. 03331_ Subatomizers dissect the Sub. Monowheel, destroying it. 03344_ Subatomizers dissect the Lgt. Cannon. 03412_ Dropped Structural Scanner. 03413_ Dropped Huge Storage Unit. 03425_ MC-2IS(R) knocked back. 03428_ I2-CSF(R) knocked back. 03432_ Subatomizers dissect the Sub. Monowheel. 03434_ Scrap Shield destroyed. 03434_ Lgt. Cannon destroyed. Map ----- +----------------------------------------------------+ | ???#### ## # # ###### % % % #### | | ??????###?##?##?????## ## ## ##??# | | ?????????????????????## ### ######???## | | ??????????????????????#" ##?## ###????????# | | ?????????????????????### #### ##???????## | | ????????????????????#### !##### ###?????### | | ????????????????????### %%%### ##?????# | | ????????????????????## % !#% ##????# | | ????????????????????## =% ###???# | | ????????????????????## ] ##???# | | ????????????????????### %="# ###???###### #### | | ???????????????????#### #######????????####??? | | ??????????????????#####% #####???????????????? | | ??????????????????### " ###?????????????????? | | ??????????????????## " %###?????????????????? | | ??????????????????## " ##?????????????????? | | ??????????????????##"" % ##?????????????????? | | ??????????????????## ## ##?????????????????? | | ??????????????????#### "## %###?????????????????? | | ??????????????????#### # ####?????????????????? | | ????????????????????### # ####??????????????????? | | ????????????????????### ####???????????????????? | | ????????????????????##=[ ###?######??????????????? | | ????????????????????##=]=##########??????????????? | | ????????????????????###!!##### ##??????????????? | | ????????????????????###[!@### ##??????????????? | | ????????????????????##R**### ###??????????????? | | ????????????????????##*R!## ##???????????????? | | ????????????????????###= ####?????????????? | | ????????????????????###R ####?????????????? | | ????????????????????### ###????????????? | | ????????????????????## ##????????????? | | ????????????????????## ?????????? | | ???????????????????### ### ?????????? | | ??????????????????### ##### ??????????? | | ??????????????????## ###????????????????? | | ??????????????????## ###????????????????? | | ??????????????????### # ????????????????? | | ??????????????????#### ""????????????????? | | ???????????????????### ### "" ??????????????? | | ????????????????????### ####### # ??????????????? | | ????????????????????### ##########??????????????? | | ?????????????????????# #??????????????????????? | | ?????????????????????? ????????????????????????? | | ?????????????????????? ????????????????????????? | | ?????????????????????? ????????????????????????? | | ?????????????????????? ????????????????????????? | | ?????????????????????????????????????????????????? | | ?????????????????????????????????????????????????? | | ?????????????????????????????????????????????????? | +----------------------------------------------------+ Best States ------------- Heat Dissipation 25 Energy Generation 12 Energy Capacity 265 Matter Stores 300 Matter Capacity 300 Sight Range 21 Terrain Scan Density 10 Armor Coverage 800 Evasion (%) 50 Recoil Reduction 2 Item Schematics ----------------- None Robot Schematics ------------------ None Fabricated ------------ Nothing Repaired ---------- Nothing Studied --------- None Alien Tech Used ----------------- None Achievements -------------- None Challenges ------------ None Game ------ Seed GaussCannonCrosscalibrator Manual? 0 Play Time 00:19:24 Cumulative 232.9 hours Start 2026.01.31 @ 14:50:54 End 2026.01.31 @ 15:08:31 Sessions 1 Manual Loads 0 Difficulty Rogue Special Mode None Game No. 319 Rogue 319 Adventurer 0 Explorer 0 Win Type - Total 3 Types 2/0/0/1/0/0/0/0/0/0 Lore% 75 Gallery% 75 Achievement% 52 Wizard Run 0 Options --------- Layout 0 ASCII 0 Keyboard 0 Movement Mouse Keybinds 0 Fullscreen 1 Font 16/SmallcapsGlow Map View 75x55 Zoom Use 0% Tactical HUD 1 Map Filters NONE Filters NONE Steam 1 RUN: e0abd9b7-885a-491b-9f68-5877293c0ba5